bitfinex/quotes_SOLUSD_20250330
["timestamp","ask_amount","ask_price","bid_price","bid_amount"]
[1743361660767,27.28879574,126.88,126.81,108.4663]
[1743361660968,19.40729574,126.87,126.81,108.4663]
[1743361662051,3.3039,126.86,126.81,88.7518]
[1743361663575,3.3039,126.86,126.81,108.4663]
[1743361665968,22.71119574,126.86,126.81,88.7518]
[1743361667764,15.74772186,126.86,126.81,88.7518]
[1743361668073,23.63042186,126.86,126.81,88.7518]
[1743361668280,11.1866,126.86,126.81,80.866]
[1743361668575,12.44382186,126.85,126.81,80.866]
[1743361669163,12.44382186,126.84,126.81,80.866]
[1743361669353,12.44382186,126.84,126.81,0.063]
[1743361672082,20.32782186,126.84,126.81,0.063]
[1743361672659,12.44382186,126.84,126.81,0.063]
[1743361673282,12.44382186,126.83,126.81,0.063]
[1743361673658,12.44382186,126.84,126.81,0.063]
[1743361673867,12.44382186,126.85,126.81,0.063]
[1743361676064,20.32722186,126.85,126.81,0.063]
[1743361676278,12.44382186,126.85,126.81,0.063]
[1743361677060,12.44382186,126.84,126.81,0.063]
[1743361677488,12.44382186,126.83,126.81,0.063]
[1743361678367,12.44382186,126.84,126.81,0.063]
[1743361680588,20.32782186,126.84,126.81,0.063]
[1743361681278,12.44382186,126.83,126.81,0.063]
[1743361683488,20.32782186,126.84,126.81,0.063]
[1743361683791,15.3434,126.85,126.81,0.063]
[1743361683992,12.44382186,126.84,126.81,0.063]
[1743361690387,20.32782186,126.84,126.81,0.063]
[1743361690590,11.2417,126.89,126.81,80.866]
[1743361690791,12.44382186,126.87,126.81,80.866]
[1743361691293,12.44382186,126.87,126.82,7.8851]
[1743361693688,12.44382186,126.87,126.82,27.598]
[1743361700802,12.44382186,126.86,126.82,7.8851]
[1743361701100,12.44382186,126.87,126.82,7.8851]
[1743361704426,12.44382186,126.85,126.81,7.9485]
[1743361704583,12.44382186,126.84,126.81,7.9485]
[1743361705102,12.44382186,126.82,126.81,0.063]
[1743361705408,31.09347072,126.82,126.81,0.063]
[1743361706888,31.09347072,126.82,126.78,0.063]
[1743361707092,12.44382186,126.81,126.78,0.063]
[1743361707802,12.44382186,126.8,126.78,0.063]
[1743361708012,12.44382186,126.79,126.78,0.063]
[1743361708688,32.44382186,126.79,126.78,0.063]
[1743361709985,51.09347072,126.79,126.78,0.063]
[1743361712487,32.44382186,126.79,126.78,0.063]
[1743361721217,84.4817,126.83,126.78,0.063]
[1743361721402,10.7417,126.83,126.78,0.063]
[1743361721600,23.18552186,126.83,126.78,0.063]
[1743361722624,10.7417,126.83,126.78,0.063]
[1743361722794,23.18552186,126.83,126.78,0.063]
[1743361723721,15.82552186,126.83,126.78,0.063]
[1743361725519,19.3263811,126.86,126.82,20.0]
[1743361725698,12.35250631,126.89,126.84,7.0932]
[1743361725899,12.35250631,126.89,126.85,43.01959258]
[1743361726729,12.35250631,126.89,126.85,219.3]
[1743361727501,12.47382186,126.91,126.86,7.8827]
[1743361728615,0.03,126.91,126.86,7.8827]
[1743361729227,0.03,126.91,126.86,27.5894]
[1743361732923,0.03,126.91,126.86,108.5894]
[1743361733125,0.03,126.91,126.86,88.8827]
[1743361734827,19.41821306,126.9,126.86,81.0]
[1743361735427,19.41821306,126.89,126.83,297.6039]
[1743361737940,19.41821306,126.9,126.83,297.6039]
[1743361738246,19.41821306,126.88,126.83,297.6039]
[1743361738423,19.41821306,126.88,126.83,289.72]
[1743361738939,19.41821306,126.88,126.83,297.6044]
[1743361739944,19.41821306,126.87,126.83,297.6044]
[1743361740122,19.41821306,126.88,126.83,88.8844]
[1743361743156,27.29961306,126.88,126.83,88.8844]
[1743361743723,19.41821306,126.88,126.83,88.8844]
[1743361744138,27.29971306,126.88,126.83,88.8844]
[1743361744451,0.03,126.91,126.83,27.5958]
[1743361744953,19.41821306,126.9,126.83,7.8844]
[1743361745153,19.41821306,126.89,126.83,88.8844]
[1743361745831,0.063,126.88,126.83,88.8844]
[1743361746630,0.063,126.88,126.83,108.5958]
[1743361749854,19.48121306,126.88,126.83,88.8844]
[1743361750642,18.71264886,126.88,126.83,88.8844]
[1743361751432,0.063,126.88,126.83,88.8844]
[1743361752251,18.71264886,126.88,126.83,88.8844]
[1743361752449,38.13086192,126.88,126.83,88.8844]
[1743361752650,41.65966192,126.88,126.83,88.8844]
[1743361753659,34.68163158,126.88,126.83,88.8844]
[1743361754559,18.71264886,126.88,126.83,88.8844]
[1743361755346,18.71264886,126.88,126.8,81.0]
[1743361755347,20.0,126.85,126.8,81.0]
[1743361755544,12.44018272,126.86,126.8,81.0]
[1743361755942,20.32268272,126.87,126.81,7.8858]
[1743361756146,18.64964886,126.86,126.81,7.8858]
[1743361757140,26.53244886,126.86,126.81,7.8858]
[1743361757543,26.53244886,126.86,126.83,0.03]
[1743361758355,31.08983158,126.84,126.83,0.03]
[1743361761268,38.97373158,126.84,126.83,0.03]
[1743361766974,23.85178272,126.86,126.83,0.03]
[1743361767153,18.64964886,126.85,126.83,0.03]
[1743361767753,31.08983158,126.85,126.83,0.03]
[1743361767961,38.97313158,126.85,126.83,0.03]
[1743361768367,31.08983158,126.84,126.83,0.03]
[1743361770561,38.97373158,126.84,126.83,0.03]
[1743361785387,26.53354886,126.84,126.83,0.03]
[1743361785584,38.97373158,126.84,126.83,0.03]
[1743361786873,88.73446246,126.84,126.83,0.03]
[1743361787595,38.97373158,126.84,126.83,0.03]
[1743361787794,88.73446246,126.84,126.83,0.03]
[1743361791773,18.64964886,126.83,126.81,0.03]
[1743361791983,19.80018272,126.82,126.81,0.03]
[1743361792672,27.68528272,126.82,126.81,0.03]
[1743361792873,20.0,126.79,126.78,0.063]
[1743361793176,32.44018272,126.79,126.78,0.063]
[1743361793983,51.08983158,126.79,126.78,0.063]
[1743361794901,58.97683158,126.79,126.78,0.063]
[1743361797181,108.73756246,126.79,126.78,0.063]
[1743361799824,58.97683158,126.79,126.78,0.063]
[1743361800025,27.36,126.79,126.78,0.063]
[1743361800405,20.0,126.79,126.78,0.063]
[1743361800915,32.44018272,126.79,126.78,0.063]
[1743361801302,58.97683158,126.79,126.78,0.063]
[1743361801702,51.08983158,126.79,126.78,0.063]
[1743361802229,58.97683158,126.79,126.78,0.063]
[1743361808329,12.44018272,126.81,126.78,0.063]
[1743361815451,7.8847,126.83,126.78,0.063]
[1743361815632,31.08983158,126.82,126.78,0.063]
[1743361816744,0.063,126.86,126.78,0.063]
[1743361816922,12.44018272,126.84,126.78,0.063]
[1743361817116,12.44018272,126.83,126.78,0.063]
[1743361817350,12.44018272,126.82,126.78,0.063]
[1743361820144,31.15283158,126.83,126.78,0.063]
[1743361820351,12.44018272,126.82,126.77,7.7513]
[1743361822251,0.063,126.83,126.77,7.7513]
[1743361822626,0.063,126.83,126.77,27.472]
[1743361822936,12.50318272,126.83,126.77,27.472]
[1743361823247,0.063,126.83,126.77,27.472]
[1743361823442,0.063,126.83,126.77,108.472]
[1743361823647,0.063,126.83,126.78,7.36]
[1743361824157,0.063,126.83,126.79,7.887]
[1743361824454,12.50318272,126.83,126.79,7.887]
[1743361825442,12.50318272,126.83,126.78,7.8874]
[1743361825643,12.44018272,126.82,126.78,7.8874]
[1743361826755,20.38778272,126.83,126.78,7.8874]
[1743361826949,12.44018272,126.82,126.78,7.8874]
[1743361828035,12.50318272,126.83,126.78,7.8874]
[1743361828236,12.44018272,126.82,126.78,7.8874]
[1743361829667,12.50318272,126.83,126.78,7.8874]
[1743361829835,12.50318272,126.83,126.78,7.9174]
[1743361830453,12.44018272,126.82,126.78,7.9174]
[1743361831049,12.44018272,126.82,126.78,7.7174]
[1743361831769,12.44018272,126.8,126.78,0.03]
[1743361831939,12.44018272,126.79,126.78,0.03]
[1743361832266,31.08983158,126.79,126.78,0.03]
[1743361833767,38.97683158,126.79,126.78,0.03]
[1743361833973,0.5,126.75,126.72,0.03]
[1743361834268,0.5,126.75,126.68,0.063]
[1743361834269,81.35056246,126.73,126.68,0.063]
[1743361834466,31.08983158,126.7,126.68,0.063]
[1743361835638,38.15285721,126.7,126.68,0.063]
[1743361835833,46.04545721,126.7,126.68,0.063]
[1743361836058,46.04545721,126.7,126.63,0.063]
[1743361836256,18.64964886,126.68,126.63,0.063]
[1743361836645,19.50320835,126.67,126.63,0.063]
[1743361837840,31.86033929,126.68,126.63,0.063]
[1743361838950,19.50320835,126.68,126.63,0.063]
[1743361839348,19.50320835,126.67,126.63,0.063]
[1743361839942,19.50320835,126.66,126.63,0.063]
[1743361840157,19.50320835,126.67,126.63,0.063]
[1743361841250,19.50320835,126.66,126.63,0.063]
[1743361842156,19.50320835,126.67,126.63,0.063]
[1743361842471,41.71855721,126.68,126.63,0.063]
[1743361843258,19.50320835,126.67,126.63,0.063]
[1743361843762,23.06890835,126.68,126.63,0.063]
[1743361846464,19.50320835,126.67,126.63,0.063]
[1743361849362,19.50320835,126.68,126.63,0.063]
[1743361856158,22.77030835,126.71,126.63,88.423]
[1743361856363,31.86033929,126.72,126.63,88.423]
[1743361857583,19.50320835,126.72,126.64,27.6372]
[1743361857775,12.4715762,126.72,126.64,27.6372]
[1743361858386,12.4715762,126.71,126.64,27.6372]
[1743361858566,7.8911,126.73,126.64,27.6372]
[1743361858766,31.12122506,126.73,126.64,27.6372]
[1743361859178,12.4715762,126.72,126.64,27.6372]
[1743361862095,12.4715762,126.72,126.64,108.6372]
[1743361864292,12.5345762,126.72,126.64,108.6372]
[1743361864484,12.4715762,126.7,126.64,108.6372]
[1743361866188,31.12122506,126.7,126.64,108.6372]
[1743361866396,12.4715762,126.68,126.64,7.8963]
[1743361866974,12.4715762,126.69,126.64,7.8963]
[1743361867183,31.12122506,126.7,126.64,7.8963]
[1743361867374,31.12122506,126.7,126.62,0.955]
[1743361867591,12.4715762,126.71,126.62,81.955]
[1743361868388,12.4715762,126.7,126.63,27.6395]
[1743361868697,12.4715762,126.69,126.63,27.6395]
[1743361869084,12.4715762,126.68,126.63,7.897]
[1743361869971,12.4715762,126.67,126.63,7.897]
[1743361870794,12.4715762,126.68,126.63,7.897]
[1743361871290,12.4715762,126.67,126.62,88.9604]
[1743361871692,12.4715762,126.66,126.62,88.9604]
[1743361873197,12.4715762,126.67,126.62,88.9604]
[1743361873696,12.4715762,126.67,126.62,7.9604]
[1743361874577,31.12122506,126.68,126.62,7.9604]
[1743361876197,12.4715762,126.67,126.62,7.9604]
[1743361877190,12.4715762,126.66,126.62,7.9604]
[1743361877379,12.4715762,126.65,126.62,0.063]
[1743361877691,12.4715762,126.64,126.62,0.063]
[1743361877992,15.7197762,126.64,126.62,0.063]
[1743361878778,19.36012564,126.66,126.62,0.063]
[1743361878975,31.83170184,126.66,126.62,0.063]
[1743361879397,19.36012564,126.66,126.62,0.063]
[1743361881181,31.83170184,126.66,126.62,0.063]
[1743361882882,12.4715762,126.65,126.62,0.063]
[1743361883100,31.12122506,126.65,126.62,0.063]
[1743361884396,31.83170184,126.66,126.62,0.063]
[1743361884904,12.35713094,126.65,126.62,0.063]
[1743361897601,12.4715762,126.64,126.62,0.063]
[1743361897900,12.4715762,126.63,126.62,0.063]
[1743361898101,31.12122506,126.63,126.62,0.063]
[1743361899992,43.478356,126.63,126.62,0.063]
[1743361900200,43.478356,126.63,126.58,0.063]
[1743361901499,12.4715762,126.62,126.58,0.063]
[1743361901908,3.2861,126.61,126.58,0.063]
[1743361904505,15.7576762,126.61,126.58,0.063]
[1743361904823,12.4715762,126.59,126.58,0.063]
[1743361905011,31.12122506,126.59,126.58,0.063]
[1743361906114,39.02072506,126.59,126.58,0.063]
[1743361907303,51.377856,126.59,126.58,0.063]
[1743361907607,18.64964886,126.58,126.57,0.063]
[1743361907907,39.02132506,126.58,126.57,0.063]
[1743361908617,31.12122506,126.58,126.57,0.063]
[1743361908923,49.00172506,126.58,126.57,0.063]
[1743361909438,41.10162506,126.58,126.57,0.063]
[1743361909601,34.51452506,126.58,126.57,0.063]
[1743361910325,46.871656,126.58,126.57,0.063]
[1743361911318,34.51452506,126.58,126.57,0.063]
[1743361912026,42.41462506,126.58,126.57,0.063]
[1743361914505,37.66622506,126.57,126.56,2.7964648]
[1743361915526,12.4715762,126.52,126.5,0.03]
[1743361915706,31.12122506,126.52,126.5,0.03]
[1743361916532,12.4715762,126.51,126.5,0.03]
[1743361916728,31.12122506,126.51,126.5,0.03]
[1743361917323,31.12122506,126.52,126.5,0.03]
[1743361918735,31.12122506,126.51,126.5,0.03]
[1743361918935,18.64964886,126.51,126.5,0.03]
[1743361919636,31.12122506,126.51,126.5,0.03]
[1743361920536,16.0432762,126.53,126.5,0.03]
[1743361920835,12.4715762,126.51,126.5,0.03]
[1743361922342,20.3760762,126.51,126.5,0.03]
[1743361922532,39.02572506,126.51,126.5,0.03]
[1743361926442,39.02572506,126.51,126.49,0.03]
[1743361926743,12.4715762,126.5,126.49,0.03]
[1743361927441,31.12122506,126.5,126.49,0.03]
[1743361927939,18.64964886,126.49,126.44,7.9388]
[1743361928441,12.4715762,126.49,126.44,7.9388]
[1743361930024,18.64964886,126.48,126.44,7.9388]
[1743361931141,18.64964886,126.48,126.44,0.03]
[1743361931342,18.64964886,126.48,126.42,6.5214]
[1743361931840,39.02762506,126.48,126.42,6.5214]
[1743361932042,31.12122506,126.48,126.42,6.5214]
[1743361932746,31.12122506,126.48,126.43,7.9095]
[1743361932928,7.36,126.49,126.43,7.9095]
[1743361933134,26.00964886,126.49,126.43,7.9095]
[1743361933833,26.00964886,126.49,126.44,0.03]
[1743361934033,12.4715762,126.51,126.44,0.03]
[1743361934238,18.64964886,126.51,126.44,0.03]
[1743361935155,12.4715762,126.5,126.44,0.03]
[1743361935453,12.4715762,126.49,126.44,0.03]
[1743361935741,12.4715762,126.48,126.44,0.03]
[1743361935933,12.4715762,126.49,126.44,0.03]
[1743361938544,12.4715762,126.47,126.44,0.03]
[1743361938935,12.4715762,126.46,126.44,0.03]
[1743361939830,18.64964886,126.46,126.44,0.03]
[1743361942138,29.29914886,126.48,126.44,0.03]
[1743361942454,21.93914886,126.48,126.44,0.03]
[1743361944451,34.41072506,126.48,126.44,0.03]
[1743361944651,18.64964886,126.47,126.44,0.03]
[1743361945338,12.4715762,126.46,126.44,0.03]
[1743361946260,31.12122506,126.47,126.44,0.03]
[1743361946461,39.02822506,126.47,126.44,0.03]
[1743361946949,15.7610762,126.48,126.44,0.03]
[1743361947152,3.2895,126.48,126.44,0.03]
[1743361948359,18.64964886,126.47,126.4,27.6897]
[1743361948747,15.7610762,126.48,126.4,27.6897]
[1743361950352,18.64964886,126.47,126.4,27.6897]
[1743361950559,15.7610762,126.48,126.4,27.6897]
[1743361952867,18.64964886,126.47,126.4,27.6897]
[1743361953247,31.12122506,126.47,126.4,27.6897]
[1743361953543,39.02822506,126.47,126.4,27.6897]
[1743361954555,12.4715762,126.46,126.4,27.6897]
[1743361955264,32.4715762,126.43,126.37,7.98780118]
[1743361955462,98.8506,126.45,126.37,0.03]
[1743361955668,12.4715762,126.42,126.37,0.03]
[1743361956671,31.12122506,126.44,126.37,0.03]
[1743361956853,23.3481762,126.45,126.37,28.9802]
[1743361957055,10.8766,126.45,126.37,28.9802]
[1743361957254,3.5166,126.45,126.38,14.3571]
[1743361957477,12.4715762,126.47,126.41,20.0]
[1743361957679,12.35213341,126.44,126.41,20.0]
[1743361958746,12.4715762,126.47,126.41,20.0]
[1743361959586,15.9881762,126.48,126.41,20.0]
[1743361959751,3.5166,126.48,126.41,27.9106]
[1743361961249,11.423,126.48,126.41,27.9106]
[1743361962563,3.5166,126.48,126.41,27.9106]
[1743361966574,3.5166,126.48,126.41,47.6875]
[1743361969677,3.5796,126.48,126.41,47.6875]
[1743361970063,0.063,126.48,126.42,1.1325]
[1743361970263,0.063,126.48,126.43,7.34]
[1743361970477,12.41513341,126.48,126.43,7.34]
[1743361971884,12.41513341,126.48,126.44,7.9088]
[1743361972970,0.063,126.48,126.44,7.9088]
[1743361974979,0.063,126.48,126.43,22.1896]
[1743361975175,0.063,126.48,126.43,15.2492]
[1743361976284,12.41513341,126.48,126.43,15.2492]
[1743361978064,12.41513341,126.48,126.43,35.0229]
[1743361978968,0.063,126.48,126.44,209.24]
[1743361979391,12.5345762,126.48,126.44,209.24]
[1743361980086,24.88670961,126.48,126.44,209.24]
[1743361981478,12.41513341,126.48,126.44,209.24]
[1743361982088,12.35213341,126.47,126.44,209.24]
[1743361983799,12.35213341,126.47,126.43,7.9092]
[1743361984487,12.35213341,126.47,126.41,7.9403]
[1743361986693,30.26234158,126.48,126.41,7.9403]
[1743361986694,17.90021311,126.48,126.41,7.9403]
[1743361987690,17.90021311,126.48,126.42,18.64964886]
[1743361987894,12.35213341,126.47,126.42,99.64964886]
[1743361988091,12.35213341,126.47,126.43,7.9095]
[1743361989283,0.063,126.48,126.43,7.9095]
[1743361990503,12.41513341,126.48,126.43,7.9095]
[1743361992301,3.2875,126.47,126.41,217.1805]
[1743361992979,15.63963341,126.47,126.41,217.1805]
[1743361993179,35.19774325,126.47,126.41,217.1805]
[1743361993382,35.19774325,126.47,126.41,7.9405]
[1743361994602,35.26074325,126.47,126.41,7.9405]
[1743361995496,19.55810984,126.43,126.41,0.03]
[1743361996005,3.2875,126.42,126.41,0.03]
[1743361997494,7.34,126.45,126.41,0.03]
[1743361997807,12.35213341,126.43,126.41,0.03]
[1743361998911,39.25024325,126.45,126.41,0.03]
[1743362002105,19.69213341,126.45,126.41,0.03]
[1743362002312,12.35213341,126.45,126.41,0.03]
[1743362003712,12.41513341,126.47,126.41,0.03]
[1743362004094,12.41513341,126.47,126.41,7.9407]
[1743362005119,0.063,126.47,126.41,7.9407]
[1743362007518,12.41513341,126.47,126.41,7.9407]
[1743362008299,24.93223247,126.47,126.41,7.9407]
[1743362009507,12.41513341,126.47,126.41,27.7176]
[1743362009711,12.41513341,126.47,126.41,34.3492]
[1743362010721,0.063,126.47,126.41,34.3492]
[1743362011508,0.063,126.47,126.42,18.64964886]
[1743362013038,0.063,126.47,126.43,27.6832]
[1743362017315,0.063,126.47,126.43,108.6832]
[1743362019430,0.063,126.47,126.44,18.64964886]
[1743362019625,0.063,126.47,126.45,7.34]
[1743362020629,0.063,126.47,126.44,81.0]
[1743362021324,0.063,126.47,126.45,7.9082]
[1743362021920,0.063,126.47,126.44,88.9086]
[1743362032242,0.063,126.47,126.44,108.6808]
[1743362036143,0.063,126.47,126.45,18.64964886]
[1743362036541,0.063,126.47,126.46,7.9076]
[1743362063476,0.063,126.47,126.46,15.2276]
[1743362066079,0.063,126.47,126.45,217.088]
[1743362066275,3.6024,126.47,126.45,209.18]
[1743362066578,12.51709906,126.46,126.45,209.18]
[1743362066759,12.51709906,126.46,126.44,0.03]
[1743362066960,12.51709906,126.45,126.44,0.03]
[1743362072983,22.98979906,126.45,126.44,0.03]
[1743362074082,30.89799906,126.45,126.42,0.03]
[1743362074385,12.51709906,126.43,126.42,0.03]
[1743362075367,3.3157,126.42,126.41,0.03]
[1743362075588,15.83279906,126.42,126.41,0.03]
[1743362078294,3.3157,126.42,126.41,0.03]
[1743362078882,35.40493247,126.45,126.41,0.03]
[1743362079998,23.05279906,126.45,126.41,0.03]
[1743362080676,12.51709906,126.44,126.41,0.03]
[1743362082894,10.5357,126.45,126.41,0.03]
[1743362083196,12.51709906,126.44,126.41,0.03]
[1743362084499,23.05279906,126.45,126.41,0.03]
[1743362085598,3.3787,126.45,126.41,0.03]
[1743362091787,0.063,126.45,126.41,0.03]
[1743362098199,12.58009906,126.45,126.41,0.03]
[1743362101007,0.063,126.45,126.41,0.03]
[1743362101589,0.063,126.45,126.41,99.67964886]
[1743362101785,0.063,126.45,126.43,18.64964886]
[1743362101992,0.063,126.45,126.44,7.32]
[1743362102595,0.063,126.45,126.44,15.2288]
[1743362106408,0.063,126.45,126.44,114.87844886]
[1743362106585,0.063,126.45,126.44,115.162772]
[1743362108001,0.063,126.45,126.44,115.662772]
[1743362108504,0.063,126.45,126.44,115.162772]
[1743362108707,0.063,126.45,126.44,115.662772]
[1743362108891,0.063,126.45,126.44,115.162772]
[1743362111804,0.063,126.45,126.44,88.9088]
[1743362112007,0.063,126.45,126.42,158.1046]
[1743362112008,0.063,126.45,126.42,0.03]
[1743362112203,12.51709906,126.43,126.42,0.03]
[1743362113808,3.2809,126.44,126.42,0.03]
[1743362117297,15.79799906,126.44,126.42,0.03]
[1743362118217,12.51709906,126.43,126.42,0.03]
[1743362124835,20.42659906,126.43,126.42,0.03]
[1743362125406,39.07624792,126.43,126.42,0.03]
[1743362125601,18.64964886,126.42,126.41,0.03]
[1743362125805,81.23514416,126.42,126.41,0.03]
[1743362126624,89.14524416,126.42,126.41,0.03]
[1743362127417,3.6255,126.41,126.4,0.03]
[1743362127608,16.14259906,126.41,126.4,0.03]
[1743362129521,3.6255,126.41,126.4,0.03]
[1743362130047,16.14259906,126.41,126.4,0.03]
[1743362131231,3.6255,126.41,126.4,0.03]
[1743362131734,16.14259906,126.41,126.4,0.03]
[1743362131921,3.6255,126.41,126.4,0.03]
[1743362132914,16.14259906,126.41,126.4,0.03]
[1743362135816,16.20559906,126.41,126.4,0.03]
[1743362136230,42.76594792,126.41,126.4,0.03]
[1743362140420,16.20559906,126.41,126.4,0.03]
[1743362141648,24.11629906,126.41,126.4,0.03]
[1743362143646,16.20559906,126.41,126.4,0.03]
[1743362144640,42.76594792,126.41,126.4,0.03]
[1743362144842,42.76594792,126.41,126.37,0.03]
[1743362145042,12.51709906,126.38,126.37,0.03]
[1743362145644,20.42969906,126.38,126.37,0.03]
[1743362146242,3.5018,126.33,126.31,2.8594648]
[1743362146430,12.51709906,126.33,126.31,2.8594648]
[1743362146845,16.01889906,126.36,126.31,2.8594648]
[1743362147240,12.51709906,126.35,126.31,2.8594648]
[1743362147625,7.9145,126.35,126.31,2.8594648]
[1743362147827,19.60086378,126.34,126.31,2.8594648]
[1743362149755,19.60086378,126.35,126.31,2.8594648]
[1743362154563,19.60086378,126.35,126.31,10.7764648]
[1743362154743,23.10266378,126.36,126.31,10.7764648]
[1743362155143,19.60086378,126.35,126.31,10.7764648]
[1743362155560,19.60086378,126.35,126.31,10.2764648]
[1743362155859,23.10266378,126.36,126.31,10.2764648]
[1743362156251,19.60086378,126.37,126.31,10.2764648]
[1743362157847,19.60086378,126.36,126.31,10.2764648]
[1743362159770,0.063,126.41,126.34,0.28432314]
[1743362159943,0.063,126.41,126.35,14.0408]
[1743362160146,0.063,126.37,126.35,14.0408]
[1743362160465,0.063,126.37,126.36,209.42]
[1743362161268,0.063,126.37,126.36,217.3338]
[1743362162164,0.063,126.37,126.36,7.9138]
[1743362162165,19.66386378,126.37,126.36,7.9138]
[1743362162392,23.11766378,126.37,126.32,7.9164]
[1743362162549,23.11766378,126.37,126.31,2.3894648]
[1743362162954,23.11766378,126.37,126.31,10.3062648]
[1743362163363,3.5168,126.37,126.31,10.3062648]
[1743362163569,23.11766378,126.37,126.31,10.3062648]
[1743362164265,19.60086378,126.36,126.31,2.3894648]
[1743362164464,19.60086378,126.35,126.31,2.3894648]
[1743362167573,19.60086378,126.36,126.31,10.3062648]
[1743362169453,19.60086378,126.35,126.31,2.3894648]
[1743362169953,0.063,126.37,126.32,7.54]
[1743362171071,0.063,126.37,126.32,216.96]
[1743362171370,19.66386378,126.37,126.32,216.96]
[1743362171978,0.063,126.37,126.32,224.8758]
[1743362172461,19.66386378,126.37,126.32,224.8758]
[1743362172771,0.063,126.37,126.32,224.8758]
[1743362174664,0.063,126.37,126.32,244.6668]
[1743362175553,0.063,126.37,126.32,325.6668]
[1743362175971,19.66386378,126.37,126.32,305.8758]
[1743362176170,19.60086378,126.36,126.32,209.42]
[1743362176373,19.60086378,126.33,126.32,209.42]
[1743362178260,27.51656378,126.33,126.31,2.3894648]
[1743362178571,19.60086378,126.32,126.31,2.3894648]
[1743362178771,19.60086378,126.33,126.31,2.3894648]
[1743362181181,19.60086378,126.32,126.31,2.3894648]
[1743362182775,19.60086378,126.33,126.31,2.3894648]
[1743362184384,19.60086378,126.32,126.31,2.3894648]
[1743362186300,27.51726378,126.32,126.31,2.3894648]
[1743362188663,30.33396378,126.32,126.31,2.3894648]
[1743362193009,2.8167,126.32,126.31,2.3894648]
[1743362193308,22.41756378,126.32,126.31,2.3894648]
[1743362193508,30.33396378,126.32,126.31,2.3894648]
[1743362195106,22.41756378,126.32,126.31,2.3894648]
[1743362195713,15.36509617,126.32,126.31,2.3894648]
[1743362196219,15.42809617,126.32,126.31,2.3894648]
[1743362196911,2.8797,126.32,126.31,2.3894648]
[1743362197980,15.42809617,126.32,126.31,2.3894648]
[1743362213293,2.8797,126.32,126.31,2.3894648]
[1743362213507,15.42809617,126.32,126.31,2.3894648]
[1743362214019,0.063,126.32,126.31,2.3894648]
[1743362217510,0.063,126.32,126.31,10.3064648]
[1743362232247,0.063,126.32,126.31,2.3894648]
[1743362234047,0.063,126.32,126.31,10.3064648]
[1743362240093,0.063,126.32,126.31,91.3064648]
[1743362243902,0.063,126.32,126.31,248.25611366]
[1743362244194,12.52761368,126.37,126.32,18.64964886]
[1743362244351,12.52761368,126.37,126.32,237.94964886]
[1743362244557,12.52761368,126.37,126.35,20.0]
[1743362244780,12.52761368,126.37,126.35,239.3]
[1743362245002,12.52761368,126.37,126.35,246.6]
[1743362246282,12.52761368,126.37,126.36,7.9138]
[1743362246699,0.063,126.37,126.36,7.9138]
[1743362247080,0.063,126.37,126.36,245.86344886]
[1743362248372,0.063,126.37,126.36,227.2138]
[1743362251806,0.063,126.37,126.36,88.9138]
[1743362253110,0.063,126.37,126.36,107.56344886]
[1743362254012,0.063,126.37,126.36,88.9138]
[1743362254311,0.063,126.37,126.36,245.86344886]
[1743362271235,0.063,126.37,126.36,455.20344886]
[1743362278229,0.063,126.37,126.36,436.5538]
[1743362278524,14.11419617,126.37,126.34,138.3]
[1743362278701,1.5028,126.35,126.34,138.3]
[1743362278900,14.05119617,126.35,126.33,290.37]
[1743362280122,12.54839617,126.34,126.33,290.37]
[1743362280626,20.46349617,126.34,126.33,290.37]